Workbook

Sheet Лист1
A1: Утверждено Директор ООО "Фанол"________________ | F1: Согласовано Директор ГБОУ УКШИ _________________
C2: неделя 1
B3: Рацион: ГБОУ УКШИ | C3: день 1
I4: 7-11 ЛЕТ
A5: Прием пищи | B5: Наименование блюда | C5: Масса порции | D5: Пищевые вещества | G5: Энерге- тическая ценность (ккал) | H5: № рецептуры | I5: Сборник рецептур
D6: Белки, г | E6: Жиры, г | F6: Углеводы, г
A7: Завтрак
B8: МАСЛО (ПОРЦИЯМИ) | C8: 10 | D8: 0.05 | E8: 6 | F8: 0.08 | G8: 68 | H8: 14 | I8: 2011
B9: КАША ЯЧНЕВАЯ | C9: 170 | D9: 4.62 | E9: 4 | F9: 20.15 | G9: 134.49 | H9: 418 | I9: 2012
B10: ЯЙЦА ВАРЕНЫЕ | C10: 40 | D10: 4.56 | E10: 4.49 | F10: 0.27 | G10: 61.29 | H10: 213 | I10: 2012
B11: ЧАЙ С САХАРОМ | C11: 200 | D11: 0.2 | E11: 0.1 | F11: 15 | G11: 60 | H11: 430 | I11: 2008
B12: ХЛЕБ ПШЕНИЧНЫЙ | C12: 80 | D12: 6 | E12: 1 | F12: 37 | G12: 147
A13: Итого за прием пищи: | C13: =SUM(C8:C12) -> 500 | D13: =SUM(D8:D12) -> 15.43 | E13: 15.59 | F13: =F8+F9+F10+F11+F12 -> 72.5 | G13: 470.78
A14: II Завтрак
B15: ФРУКТЫ СВЕЖИЕ | C15: 200 | D15: 0.6 | E15: 0.6 | F15: 14.7 | G15: 117.5 | H15: 747 | I15: 2008
A16: Итого за прием пищи: | C16: =SUM(C15:C15) -> 200 | D16: =SUM(D15:D15) -> 0.6 | E16: =SUM(E15:E15) -> 0.6 | F16: =SUM(F15:F15) -> 14.7 | G16: =SUM(G15:G15) -> 117.5
A17: Обед
B18: САЛАТ СОЛНЫШКО | C18: 60 | D18: 0.8 | E18: 0.9 | F18: 2.77 | G18: 64 | H18: 5 | I18: 2024
B19: СУП КАРТОФЕЛЬНЫЙ С БОБОВЫМИ | C19: 200 | D19: 3.28 | E19: 4.38 | F19: 14.92 | G19: 117.59 | H19: 102 | I19: 2011
B20: КОТЛЕТЫ РУБЛЕНЫЕ ИЗ ПТИЦЫ | C20: 90 | D20: 11.94 | E20: 16.98 | F20: 15.3 | G20: 223 | H20: 314 | I20: 2008
B21: МАКАРОННЫЕ ИЗДЕЛИЯ ОТВАРНЫЕ | C21: 150 | D21: 4.39 | E21: 4.63 | F21: 25.75 | G21: 167 | H21: 209 | I21: 2008
B22: КОМПОТ ИЗ СВЕЖИХ ПЛОДОВ | C22: 180 | D22: 0.2 | E22: 0.2 | F22: 24 | G22: 86 | H22: 394 | I22: 2008
B23: ХЛЕБ ПШЕНИЧНЫЙ | C23: 30 | D23: 3.71 | E23: 0.3 | F23: 19 | G23: 94.86
B24: ХЛЕБ РЖАНОЙ | C24: 40 | D24: 2.65 | E24: 0.35 | F24: 16.96 | G24: 81.58 | I24: 2008
A25: Итого за прием пищи: | C25: =SUM(C18:C24) -> 750 | D25: =SUM(D18:D24) -> 26.97 | E25: 27.74 | F25: 118.7 | G25: 834.03
A26: Полдник
B27: БУЛОЧКА С ПОВИДЛОМ | C27: 100 | D27: 10.55 | E27: 13.52 | F27: 44.36 | G27: 278 | H27: 425 | I27: 2011
B28: НАПИТОК ВИТАМИННЫЙ ВИТОШКА | C28: 200 | D28: 1 | F28: 18 | G28: 79
A29: Итого за прием пищи: | C29: =SUM(C27:C28) -> 300 | D29: =SUM(D27:D28) -> 11.55 | E29: 13.52 | F29: 62.36 | G29: 357
A30: Ужин
B31: КАША РИСОВАЯ РАССЫПЧАТАЯ | C31: 150 | D31: 3.59 | E31: 4.58 | F31: 14.55 | G31: 105.18 | H31: 323 | I31: 2008
B32: БЕФСТРОГАНОВ | C32: 90 | D32: 6.99 | E32: 11.25 | F32: 2.7 | G32: 139 | H32: 250 | I32: 2011
B33: ЧАЙ С МОЛОКОМ | C33: 180 | D33: 1.54 | E33: 1.47 | F33: 13 | G33: 76 | H33: 394 | I33: 2012
B34: ХЛЕБ ПШЕНИЧНЫЙ | C34: 40 | D34: 3.71 | E34: 0.3 | F34: 20.34 | G34: 94.86
B35: ХЛЕБ РЖАНОЙ | C35: 40 | D35: 2.65 | E35: 0.35 | F35: 16.96 | G35: 81.58 | I35: 2008
A36: Итого за прием пищи: | C36: =SUM(C31:C35) -> 500 | D36: =SUM(D31:D35) -> 18.48 | E36: 17.95 | F36: 67.55 | G36: 496.62
A37: 2 Ужин
B38: КЕФИР | C38: 200 | D38: 5.8 | E38: 6.4 | F38: 8 | G38: 112 | H38: 435 | I38: 2008
A39: Итого за прием пищи: | C39: =SUM(C38) -> 200 | D39: =SUM(D38) -> 5.8 | E39: 6.4 | F39: 8 | G39: 112
A40: Всего за день: | D40: =D39+D36+D29+D25+D16+D13 -> 78.83 | E40: =E39+E36+E29+E25+E16+E13 -> 81.8 | F40: =F39+F36+F29+F25+F16+F13 -> 343.81 | G40: =G39+G36+G29+G25+G16+G13 -> 2387.93
A43: Утверждено Директор ООО "Фанол"________________ | F43: Согласовано Директор ГБОУ УКШИ _________________
C44: неделя 1
B45: Рацион: ГБОУ УКШИ | C45: день 2
I46: 7-11 ЛЕТ
A47: Прием пищи | B47: Наименование блюда | C47: Масса порции | D47: Пищевые вещества | G47: Энерге- тическая ценность (ккал) | H47: № рецептуры | I47: Сборник рецептур
D48: Белки, г | E48: Жиры, г | F48: Углеводы, г
A49: Завтрак
B50: МАСЛО (ПОРЦИЯМИ) | C50: 10 | D50: 0.08 | E50: 12.38 | F50: 0.12 | G50: 112.2 | H50: 14 | I50: 2011
B51: СЫР (ПОРЦИЯМИ) | C51: 10 | D51: 2.32 | E51: 2.95 | F51: 0 | G51: 36.4 | H51: 15 | I51: 2011
B52: КАША ПШЕННАЯ | C52: 200 | D52: 6.28 | E52: 6.36 | F52: 38.35 | G52: 235.78 | H52: 417 | I52: 2012
B53: ЧАЙ С МОЛОКОМ | C53: 200 | D53: 2.03 | E53: 2.17 | F53: 13 | G53: 80.16 | H53: 394 | I53: 2012
B54: ХЛЕБ ПШЕНИЧНЫЙ | C54: 80 | D54: 3.71 | E54: 0.3 | F54: 24.34 | G54: 114.86
A55: Итого за прием пищи: | C55: =SUM(C50:C54) -> 500 | D55: =SUM(D50:D54) -> 14.42 | E55: 24.16 | F55: 75.81 | G55: 579.4
A56: II Завтрак
B57: СОК ФРУКТОВЫЙ | C57: 180 | D57: 0.97 | E57: 0.19 | F57: 19.59 | G57: 83.42 | H57: 399 | I57: 2012
B58: КОНДИТЕРСКИЕ ИЗДЕЛИЯ | C58: 20 | D58: 2.18 | E58: 2.85 | F58: 21.65 | G58: 121.35
A59: Итого за прием пищи: | C59: =SUM(C57:C58) -> 200 | D59: =SUM(D57:D58) -> 3.15 | E59: 3.04 | F59: 41.24 | G59: 204.77
A60: Обед
B61: САЛАТИЗ СВЕЖИХ ОВОЩЕЙ | C61: 60 | D61: 0.66 | E61: 3.03 | F61: 7.27 | G61: 59.42 | H61: 32 | I61: 2020
B62: СУП С МАКАРОННЫМИ ИЗДЕЛИЯМИ И КАРТОФЕЛЕМ | C62: 200 | D62: 2.13 | E62: 2.26 | F62: 14.56 | G62: 87.29 | H62: 112 | I62: 2011
B63: КОТЛЕТЫ ИЗ ГОВЯДИНЫ | C63: 90 | D63: 13.5 | E63: 13.86 | F63: 11.34 | G63: 225 | H63: 272 | I63: 2008
B64: КАРТОФЕЛЬНОЕ ПЮРЕ | C64: 150 | D64: 3.09 | E64: 17.08 | F64: 20.97 | G64: 250.34 | H64: 128 | I64: 2011
B65: КОМПОТ ИЗ СМЕСИ СУХОФРУКТОВ | C65: 180 | D65: 0 | E65: 0 | F65: 19.36 | G65: 77.41 | H65: 349 | I65: 2011
B66: ХЛЕБ ПШЕНИЧНЫЙ | C66: 30 | D66: 3.71 | E66: 0.3 | F66: 24.34 | G66: 114.86
B67: ХЛЕБ РЖАНОЙ | C67: 20 | D67: 2.65 | E67: 0.35 | F67: 16.96 | G67: 81.58 | I67: 2008
A68: Итого за прием пищи: | C68: =SUM(C61:C67) -> 730 | D68: =SUM(D61:D67) -> 25.74 | E68: 36.88 | F68: 114.8 | G68: 895.9
A69: Полдник
B70: ПИРОЖКИ ПЕЧЕНЫЕ С КАРТОШКОЙ | C70: 100 | D70: 4 | E70: 8.8 | F70: 25.2 | G70: 252 | H70: 451 | I70: 2008
B71: КИСЕЛЬ | C71: 200 | D71: 0.1 | E71: 0.1 | F71: 27.9 | G71: 113 | H71: 411 | I71: 2008
A72: Итого за прием пищи: | C72: =SUM(C70:C71) -> 300 | D72: =SUM(D70:D71) -> 4.1 | E72: 8.9 | F72: 53.1 | G72: 365
A73: Ужин
B74: РАГУ ИЗ ОВОЩНОЕ С КУРИЦЕЙ | C74: 200 | D74: 17.91 | E74: 22.84 | F74: 19.13 | G74: 354.15 | H74: 289 | I74: 2011
B75: ЧАЙ С САХАРОМ | C75: 200 | D75: 0.2 | E75: 0.1 | F75: 15 | G75: 60 | H75: 430 | I75: 2008
B76: ХЛЕБ ПШЕНИЧНЫЙ | C76: 40 | D76: 3.71 | E76: 0.3 | F76: 24.34 | G76: 114.86
B77: ХЛЕБ РЖАНОЙ | C77: 60 | D77: 2.65 | E77: 0.35 | F77: 16.96 | G77: 81.58 | I77: 2008
A78: Итого за прием пищи: | C78: =SUM(C74:C77) -> 500 | D78: =SUM(D74:D77) -> 24.47 | E78: 23.59 | F78: 75.43 | G78: 610.59
A79: 2 Ужин
B80: МОЛОКО КИПЯЧЕНОЕ | C80: 200 | D80: 6.1 | E80: 6.4 | F80: 10.1 | G80: 117.2 | H80: 434 | I80: 2008
A81: Итого за прием пищи: | C81: =SUM(C80) -> 200 | D81: =SUM(D80) -> 6.1 | E81: 6.4 | F81: 10.1 | G81: 117.2
A82: Всего за день: | D82: =D81+D78+D72+D68+D59+D55 -> 77.98 | E82: =E81+E78+E72+E68+E59+E55 -> 102.97 | F82: 370.48 | G82: 2772.86
A85: Утверждено Директор ООО "Фанол"________________ | F85: Согласовано Директор ГБОУ УКШИ _________________
C86: неделя 1
B87: Рацион: ГБОУ УКШИ | C87: день 3
I88: 7-11 ЛЕТ
A89: Прием пищи | B89: Наименование блюда | C89: Масса порции | D89: Пищевые вещества | G89: Энерге- тическая ценность (ккал) | H89: № рецептуры | I89: Сборник рецептур
D90: Белки, г | E90: Жиры, г | F90: Углеводы, г
A91: Завтрак
B92: КАША МАННАЯ ЖИДКАЯ | C92: 150 | D92: 4.6 | E92: 6.2 | F92: 20.7 | G92: 157 | H92: 189 | I92: 2008
B93: ФРУКТЫ СВЕЖИЕ | C93: 100 | D93: 0.6 | E93: 0.6 | F93: 14.7 | G93: 70.5 | H93: 747 | I93: 2008
B94: МАСЛО (ПОРЦИЯМИ) | C94: 10 | D94: 0.05 | E94: 8.25 | F94: 0.08 | G94: 74.8 | H94: 14 | I94: 2011
B95: КОФЕЙНЫЙ НАПИТОК С МОЛОКОМ | C95: 180 | D95: 3.31 | E95: 3.1 | F95: 26.53 | G95: 148.03 | H95: 379 | I95: 2011
B96: ХЛЕБ ПШЕНИЧНЫЙ | C96: 60 | D96: 3.71 | E96: 0.3 | F96: 24.34 | G96: 114.86
A97: Итого за прием пищи: | C97: =SUM(C92:C96) -> 500 | D97: =D92+D93+D94+D95+D96 -> 12.27 | E97: =E92+E93+E94+E95+E96 -> 18.45 | F97: =SUM(F92:F96) -> 86.35 | G97: =G92+G93+G94+G95+G96 -> 565.19
A98: II Завтрак
B99: КИСЕЛЬ | C99: 180 | D99: 0.1 | E99: 0.1 | F99: 27.9 | G99: 113 | H99: 411 | I99: 2008
B100: КОНДИТЕРСКИЕ ИЗДЕЛИЯ | C100: 20 | D100: 2.18 | E100: 2.85 | F100: 21.65 | G100: 121.35
A101: Итого за прием пищи: | C101: =SUM(C99:C100) -> 200 | D101: =SUM(D99:D100) -> 2.28 | E101: 2.95 | F101: 49.55 | G101: 234.35
A102: Обед
B103: САЛАТ ПЕСТРЫЙ | C103: 60 | D103: 2.16 | E103: 6.12 | F103: 4.68 | G103: 82.2 | H103: 30 | I103: 2008
B104: ЩИ ИЗ СВЕЖЕЙ КАПУСТЫ С КАРТОФЕЛЕМ | C104: 200 | D104: 1.48 | E104: 4.06 | F104: 7.2 | G104: 71.84 | H104: 88 | I104: 2011
B105: ПТИЦА ОТВАРНАЯ | C105: 90 | D105: 25.38 | E105: 6.48 | F105: 0.72 | G105: 163.8 | H105: 307 | I105: 2008
B106: КАША ГРЕЧНЕВАЯ РАССЫПЧАТАЯ | C106: 150 | D106: 8.51 | E106: 6.9 | F106: 38.64 | G106: 250.7 | H106: 181 | I106: 2008
B107: КОМПОТ ИЗ СВЕЖИХ ПЛОДОВ | C107: 180 | D107: 0.2 | E107: 0.2 | F107: 27.9 | G107: 115 | H107: 394 | I107: 2008
B108: ХЛЕБ ПШЕНИЧНЫЙ | C108: 50 | D108: 3.71 | E108: 0.3 | F108: 24.34 | G108: 114.86
B109: ХЛЕБ РЖАНОЙ | C109: 40 | D109: 2.65 | E109: 0.35 | F109: 16.96 | G109: 81.58 | I109: 2008
A110: Итого за прием пищи: | C110: =SUM(C103:C109) -> 770 | D110: =SUM(D103:D109) -> 44.09 | E110: 24.41 | F110: 120.44 | G110: 879.98
A111: Полдник
B112: БУЛОЧКА ВЕСНУШКА | C112: 100 | D112: 7.89 | E112: 6.55 | F112: 54.37 | G112: 307.96 | H112: 473 | I112: 2012
B113: НАПИТОК ИЗ ПЛОДОВ ШИПОВНИКА | C113: 200 | D113: 0.7 | E113: 0.3 | F113: 24.4 | G113: 103 | H113: 441 | I113: 2008
A114: Итого за прием пищи: | C114: =SUM(C112:C113) -> 300 | D114: =SUM(D112:D113) -> 8.59 | E114: 6.85 | F114: 78.77 | G114: 410.96
A115: Ужин
B116: КОТЛЕТЫ РЫБНЫЕ ПАРОВЫЕ | C116: 90 | D116: 14.21 | E116: 7.66 | F116: 7.17 | G116: 154.24 | H116: 257 | I116: 2012
B117: ПЮРЕ КАРТОФЕЛЬНОЕ | C117: 150 | D117: 3.15 | E117: 5.23 | F117: 21.36 | G117: 145.67 | H117: 321 | I117: 2012
B118: ЧАЙ С САХАРОМ И ЛИМОНОМ | C118: 180 | D118: 0.3 | E118: 0.1 | F118: 15.2 | G118: 62 | H118: 431 | I118: 2008
B119: ХЛЕБ ПШЕНИЧНЫЙ | C119: 40 | D119: 3.71 | E119: 0.3 | F119: 24.34 | G119: 114.86
B120: ХЛЕБ РЖАНОЙ | C120: 40 | D120: 2.65 | E120: 0.35 | F120: 16.96 | G120: 81.58 | I120: 2008
A121: Итого за прием пищи: | C121: =SUM(C116:C120) -> 500 | D121: =SUM(D116:D120) -> 24.02 | E121: 13.64 | F121: 85.03 | G121: 558.35
A122: 2 Ужин
B123: КЕФИР | C123: 200 | D123: 5.8 | E123: 6.4 | F123: 8 | G123: 112 | H123: 435 | I123: 2008
A124: Итого за прием пищи: | C124: =SUM(C123) -> 200 | D124: =SUM(D123) -> 5.8 | E124: 6.4 | F124: 8 | G124: 112
A125: Всего за день: | D125: =D124+D121+D114+D110+D101+D97 -> 97.05 | E125: =E124+E121+E114+E110+E101+E97 -> 72.7 | F125: 428.14 | G125: 2760.83
A128: Утверждено Директор ООО "Фанол"________________ | F128: Согласовано Директор ГБОУ УКШИ _________________
C129: неделя 1
B130: Рацион: ГБОУ УКШИ | C130: день 4
I131: 7-11 ЛЕТ
A132: Прием пищи | B132: Наименование блюда | C132: Масса порции | D132: Пищевые вещества | G132: Энерге- тическая ценность (ккал) | H132: № рецептуры | I132: Сборник рецептур
D133: Белки, г | E133: Жиры, г | F133: Углеводы, г
A134: Завтрак
B135: МАСЛО (ПОРЦИЯМИ) | C135: 10 | D135: 0.05 | E135: 8.25 | F135: 0.08 | G135: 74.8 | H135: 14 | I135: 2011
B136: СЫР (ПОРЦИЯМИ) | C136: 10 | D136: 6.96 | E136: 8.85 | F136: 0 | G136: 109.2 | H136: 15 | I136: 2011
B137: КАША ГЕРКУЛЕСОВАЯ | C137: 190 | D137: 7.06 | E137: 8.33 | F137: 30.64 | G137: 226.02 | H137: 413 | I137: 2012
B138: КАКАО С МОЛОКОМ | C138: 200 | D138: 3.75 | E138: 3.01 | F138: 24.42 | G138: 141 | H138: 382 | I138: 2011
B139: ХЛЕБ ПШЕНИЧНЫЙ | C139: 90 | D139: 3.71 | E139: 0.3 | F139: 24.34 | G139: 114.86
A140: Итого за прием пищи: | C140: =SUM(C135:C139) -> 500 | D140: =SUM(D135:D139) -> 21.53 | E140: 28.74 | F140: 79.48 | G140: 665.88
A141: II Завтрак
B142: НАПИТОК ИЗ ПЛОДОВ ШИПОВНИКА | C142: 180 | D142: 0.7 | E142: 0.3 | F142: 24.4 | G142: 103 | H142: 441 | I142: 2008
B143: КОНДИТЕРСКИЕ ИЗДЕЛИЯ | C143: 20 | D143: 2.18 | E143: 2.85 | F143: 21.65 | G143: 121.35
A144: Итого за прием пищи: | C144: =SUM(C142:C143) -> 200 | D144: =SUM(D142:D143) -> 2.88 | E144: 3.15 | F144: 46.05 | G144: 224.35
A145: Обед
B146: САЛАТ ВИТАМИННЫЙ | C146: 60 | D146: 0.9 | E146: 9.06 | F146: 5.1 | G146: 105.6 | H146: 42 | I146: 2008
B147: РАССОЛЬНИК ЛЕНИНГРАДСКИЙ | C147: 200 | D147: 1.78 | E147: 4.18 | F147: 13.13 | G147: 97.73 | H147: 76 | I147: 2012
B148: КОТЛЕТЫ ЗДОРОВЬЕ | C148: 90 | D148: 13.5 | E148: 13.86 | F148: 11.34 | G148: 225 | H148: 272 | I148: 2008
B149: МАКАРОННЫЕ ИЗДЕЛИЯ ОТВАРНЫЕ | C149: 150 | D149: 5.43 | E149: 4.66 | F149: 30.94 | G149: 188.18 | H149: 209 | I149: 2008
B150: КОМПОТ ИЗ СМЕСИ СУХОФРУКТОВ | C150: 180 | D150: 0 | E150: 0 | F150: 19.36 | G150: 77.41 | H150: 349 | I150: 2011
B151: ХЛЕБ ПШЕНИЧНЫЙ | C151: 30 | D151: 3.71 | E151: 0.3 | F151: 24.34 | G151: 114.86
B152: ХЛЕБ РЖАНОЙ | C152: 40 | D152: 2.65 | E152: 0.35 | F152: 16.96 | G152: 81.58 | I152: 2008
A153: Итого за прием пищи: | C153: =SUM(C146:C152) -> 750 | D153: =SUM(D146:D152) -> 27.97 | E153: 32.41 | F153: 121.17 | G153: 890.36
A154: Полдник
B155: ПИРОЖКИ ПЕСОЧНЫЕ С ЯБЛОКАМИ | C155: 100 | D155: 6.8 | E155: 12.76 | F155: 59.8 | G155: 382.43 | H155: 419 | I155: 2011
B156: КИСЕЛЬ ВИТАМИННЫЙ ВИТОШКА | C156: 200 | F156: 19 | G156: 75
A157: Итого за прием пищи: | C157: =SUM(C155:C156) -> 300 | D157: =SUM(D155:D156) -> 6.8 | E157: 12.76 | F157: 59.8 | G157: 382.43
A158: Ужин
B159: САЛАТ ИЗ СВЕКЛЫ С ИЗЮМОМ | C159: 60 | D159: 0.93 | E159: 3.6 | F159: 11.5 | G159: 82.43 | H159: 32 | I159: 2012
B160: ПЛОВ ИЗ ОТВАРНОЙ ГОВЯДИНЫ | C160: 150 | D160: 17.1 | E160: 17.77 | F160: 25.34 | G160: 329.41 | H160: 244 | I160: 2011
B161: ЧАЙ С МОЛОКОМ | C161: 200 | D161: 2.03 | E161: 2.17 | F161: 13 | G161: 80.16 | H161: 394 | I161: 2012
B162: ХЛЕБ ПШЕНИЧНЫЙ | C162: 50 | D162: 3.71 | E162: 0.3 | F162: 24.34 | G162: 114.86
B163: ХЛЕБ РЖАНОЙ | C163: 40 | D163: 2.65 | E163: 0.35 | F163: 16.96 | G163: 81.58 | I163: 2008
A164: Итого за прием пищи: | C164: =SUM(C159:C163) -> 500 | D164: =SUM(D159:D163) -> 26.42 | E164: 24.19 | F164: 91.14 | G164: 688.44
A165: 2 Ужин
B166: МОЛОКО КИПЯЧЕНОЕ | C166: 200 | D166: 6.1 | E166: 6.4 | F166: 10.1 | G166: 117.2 | H166: 434 | I166: 2008
A167: Итого за прием пищи: | C167: =SUM(C166) -> 200 | D167: =SUM(D166) -> 6.1 | E167: 6.4 | F167: 10.1 | G167: 117.2
A168: Всего за день: | D168: =D167+D164+D157+D153+D144+D140 -> 91.7 | E168: =E167+E164+E157+E153+E144+E140 -> 107.65 | F168: 407.74 | G168: 2968.66
A171: Утверждено Директор ООО "Фанол"________________ | F171: Согласовано Директор ГБОУ УКШИ _________________
C172: неделя 1
B173: Рацион: ГБОУ УКШИ | C173: день 5
I174: 7-11 ЛЕТ
A175: Прием пищи | B175: Наименование блюда | C175: Масса порции | D175: Пищевые вещества | G175: Энерге- тическая ценность (ккал) | H175: № рецептуры | I175: Сборник рецептур
D176: Белки, г | E176: Жиры, г | F176: Углеводы, г
A177: Завтрак
B178: МАСЛО (ПОРЦИЯМИ) | C178: 10 | D178: 0.05 | E178: 8.25 | F178: 0.08 | G178: 74.8 | H178: 14 | I178: 2011
B179: СЫР (ПОРЦИЯМИ) | C179: 10 | D179: 4.64 | E179: 5.9 | F179: 0 | G179: 72.8 | H179: 15 | I179: 2011
B180: КАША "ДРУЖБА" | C180: 200 | D180: 6.82 | E180: 11 | F180: 29.48 | G180: 246.4 | H180: 190 | I180: 2008
B181: ЧАЙ С САХАРОМ | C181: 200 | D181: 0.2 | E181: 0.1 | F181: 15 | G181: 60 | H181: 430 | I181: 2008
B182: ХЛЕБ ПШЕНИЧНЫЙ | C182: 80 | D182: 3.71 | E182: 0.3 | F182: 24.34 | G182: 114.86
A183: Итого за прием пищи: | C183: =SUM(C178:C182) -> 500 | D183: =SUM(D178:D182) -> 15.42 | E183: 25.55 | F183: 68.9 | G183: 568.86
A184: II Завтрак
B185: СОК ФРУКТОВЫЙ | C185: 180 | D185: 0.97 | E185: 0.19 | F185: 19.59 | G185: 83.42 | H185: 399 | I185: 2012
B186: КОНДИТЕРСКИЕ ИЗДЕЛИЯ | C186: 20 | D186: 2.18 | E186: 2.85 | F186: 21.65 | G186: 121.35
A187: Итого за прием пищи: | C187: =SUM(C185:C186) -> 200 | D187: =SUM(D185:D186) -> 3.15 | E187: 3.04 | F187: 41.24 | G187: 204.77
A188: Обед
B189: САЛАТ СТУДЕНТЧИСКИЙ | C189: 70 | D189: 1.61 | E189: 4.28 | F189: 5.81 | G189: 68.31 | H189: 40 | I189: 2011
B190: БОРЩ | C190: 200 | D190: 1.34 | E190: 3.96 | F190: 7.78 | G190: 72.6 | H190: 56 | I190: 2012
B191: ЗАПЕКАНКА КАРТОФЕЛЬНАЯ С МЯСОМ | C191: 200 | D191: 17.28 | E191: 23.36 | F191: 32.64 | G191: 409.6 | H191: 299 | I191: 2008
B192: КОМПОТ ИЗ СВЕЖИХ ПЛОДОВ | C192: 180 | D192: 0.2 | E192: 0.2 | F192: 27.9 | G192: 115 | H192: 394 | I192: 2008
B193: ХЛЕБ ПШЕНИЧНЫЙ | C193: 20 | D193: 3.71 | E193: 0.3 | F193: 24.34 | G193: 114.86
B194: ХЛЕБ РЖАНОЙ | C194: 30 | D194: 2.65 | E194: 0.35 | F194: 16.96 | G194: 81.58 | I194: 2008
A195: Итого за прием пищи: | C195: =SUM(C189:C194) -> 700 | D195: =SUM(D189:D194) -> 26.79 | E195: 32.45 | F195: 115.43 | G195: 861.95
A196: Полдник
B197: ВАТРУШКА С ТВОРОГОМ | C197: 100 | D197: 13.87 | E197: 10.89 | F197: 30.09 | G197: 276.41 | H197: 234 | I197: 2012
B198: ЧАЙ С МОЛОКОМ | C198: 200 | D198: 2.03 | E198: 2.17 | F198: 13 | G198: 80.16 | H198: 394 | I198: 2012
A199: Итого за прием пищи: | C199: =SUM(C197:C198) -> 300 | D199: =SUM(D197:D198) -> 15.9 | E199: 13.06 | F199: 43.09 | G199: 356.57
A200: Ужин
B201: ГОВЯДИНА, ТУШЕННАЯ С КАПУСТОЙ | C201: 200 | D201: 25.02 | E201: 24.88 | F201: 8.52 | G201: 358.39 | H201: 262 | I201: 2008
B202: ЧАЙ С САХАРОМ И ЛИМОНОМ | C202: 200 | D202: 0.3 | E202: 0.1 | F202: 15.2 | G202: 62 | H202: 431 | I202: 2008
B203: ХЛЕБ РЖАНОЙ | C203: 50 | D203: 2.65 | E203: 0.35 | F203: 16.96 | G203: 81.58 | I203: 2008
B204: ХЛЕБ ПШЕНИЧНЫЙ | C204: 50 | D204: 3.71 | E204: 0.3 | F204: 24.34 | G204: 114.86
A205: Итого за прием пищи: | C205: =SUM(C201:C204) -> 500 | D205: =SUM(D201:D204) -> 31.68 | E205: 25.63 | F205: 65.02 | G205: 616.83
A206: 2 Ужин
B207: КЕФИР | C207: 200 | D207: 5.8 | E207: 6.4 | F207: 8 | G207: 112 | H207: 435 | I207: 2008
A208: Итого за прием пищи: | C208: =SUM(C207) -> 200 | D208: =SUM(D207) -> 5.8 | E208: 6.4 | F208: 8 | G208: 112
... 202 more rows
